[Event "Titled Tuesday Blitz January 10 Early 2023"]
[White "Bortnyk, Olexandr"]
[Black "Batsuren, Dambasuren"]
[WhiteFideId "14120828"]
[BlackFideId "4902920"]
[WhiteElo "2605"]
[BlackElo "2525"]
[Result "1-0"]
[Round "04"]
[TimeControl "180+2"]
[Date "2023.01.10"]
[WhiteClock "0:01:46"]
[BlackClock "0:00:29"]

1. e4 {[%clk 0:02:59]}  c6 {[%clk 0:02:58]} 2. c4 {[%clk 0:02:57]}  d5 {[%clk 0:02:57]} 3. cxd5 {[%clk 0:02:58]}  cxd5 {[%clk 0:02:58]} 4. exd5 {[%clk 0:02:58]}  Nf6 {[%clk 0:02:55]} 5. Qa4+ {[%clk 0:02:59]}  Nbd7 {[%clk 0:02:54]} 6. Nc3 {[%clk 0:02:58]}  g6 {[%clk 0:02:54]} 7. Bc4 {[%clk 0:02:59]}  Bg7 {[%clk 0:02:54]} 8. d3 {[%clk 0:02:59]}  O-O {[%clk 0:02:55]} 9. Nf3 {[%clk 0:03:00]}  a6 {[%clk 0:02:53]} 10. Qa3 {[%clk 0:03:00]}  Rb8 {[%clk 0:02:40]} 11. Bf4 {[%clk 0:03:00]}  Ra8 {[%clk 0:02:36]} 12. O-O {[%clk 0:03:00]}  Nh5 {[%clk 0:02:36]} 13. Bg5 {[%clk 0:03:00]}  Bf6 {[%clk 0:02:34]} 14. Rfe1 {[%clk 0:02:58]}  Re8 {[%clk 0:02:33]} 15. Re3 {[%clk 0:02:53]}  Rb8 {[%clk 0:02:22]} 16. Bb3 {[%clk 0:02:46]}  b5 {[%clk 0:02:21]} 17. Qb4 {[%clk 0:02:47]}  a5 {[%clk 0:02:18]} 18. Qh4 {[%clk 0:02:47]}  a4 {[%clk 0:02:15]} 19. Bc2 {[%clk 0:02:47]}  a3 {[%clk 0:02:11]} 20. Ne4 {[%clk 0:02:38]}  axb2 {[%clk 0:02:02]} 21. Rb1 {[%clk 0:02:38]}  Bb7 {[%clk 0:01:52]} 22. g4 {[%clk 0:02:35]}  Ng7 {[%clk 0:01:29]} 23. Bb3 {[%clk 0:02:33]}  h5 {[%clk 0:01:22]} 24. h3 {[%clk 0:02:20]}  Bxg5 {[%clk 0:01:18]} 25. Qxg5 {[%clk 0:02:09]}  Nf8 {[%clk 0:01:10]} 26. Rxb2 {[%clk 0:02:06]}  Nh7 {[%clk 0:01:10]} 27. Qh6 {[%clk 0:02:04]}  hxg4 {[%clk 0:00:56]} 28. Nfg5 {[%clk 0:01:59]}  Nf8 {[%clk 0:00:39]} 29. hxg4 {[%clk 0:01:58]}  Qc8 {[%clk 0:00:32]} 30. d6 {[%clk 0:01:48]}  Qc1+ {[%clk 0:00:29]} 31. Kh2 {[%clk 0:01:47]}  Qxb2 {[%clk 0:00:29]} 32. Bxf7# {[%clk 0:01:46]} 1-0


[Site "https://www.chess.com"]

[Event "Titled Tuesday Blitz January 10 Early 2023"]
[White "Galchenko, Matvey"]
[Black "Svidler, Peter"]
[WhiteFideId "24175480"]
[BlackFideId "4102142"]
[WhiteElo "2438"]
[BlackElo "2683"]
[Result "0-1"]
[Round "04"]
[TimeControl "180+2"]
[Date "2023.01.10"]
[WhiteClock "0:00:02"]
[BlackClock "0:00:42"]

1. f4 {[%clk 0:03:00]}  d5 {[%clk 0:02:58]} 2. Nf3 {[%clk 0:02:57]}  g6 {[%clk 0:02:57]} 3. g3 {[%clk 0:02:57]}  Bg7 {[%clk 0:02:58]} 4. Bg2 {[%clk 0:02:58]}  c5 {[%clk 0:02:55]} 5. O-O {[%clk 0:02:58]}  Nc6 {[%clk 0:02:54]} 6. d3 {[%clk 0:02:59]}  Nf6 {[%clk 0:02:53]} 7. Nc3 {[%clk 0:02:59]}  d4 {[%clk 0:02:51]} 8. Na4 {[%clk 0:02:59]}  Qd6 {[%clk 0:02:41]} 9. c4 {[%clk 0:02:51]}  O-O {[%clk 0:02:38]} 10. a3 {[%clk 0:02:49]}  Bd7 {[%clk 0:02:09]} 11. b4 {[%clk 0:02:32]}  b6 {[%clk 0:02:09]} 12. Rb1 {[%clk 0:02:28]}  Rac8 {[%clk 0:02:04]} 13. Bd2 {[%clk 0:02:01]}  Ng4 {[%clk 0:02:03]} 14. Ng5 {[%clk 0:01:51]}  f5 {[%clk 0:01:51]} 15. bxc5 {[%clk 0:01:38]}  bxc5 {[%clk 0:01:51]} 16. Rb7 {[%clk 0:01:39]}  Nd8 {[%clk 0:01:29]} 17. Rxa7 {[%clk 0:01:22]}  Bc6 {[%clk 0:01:20]} 18. Ra6 {[%clk 0:01:18]}  h6 {[%clk 0:01:17]} 19. Nf3 {[%clk 0:01:01]}  Ra8 {[%clk 0:01:08]} 20. Rxa8 {[%clk 0:00:49]}  Bxa8 {[%clk 0:01:08]} 21. Qb3 {[%clk 0:00:48]}  Ne6 {[%clk 0:01:06]} 22. Rb1 {[%clk 0:00:38]}  Ne3 {[%clk 0:01:03]} 23. Bxe3 {[%clk 0:00:32]}  dxe3 {[%clk 0:01:03]} 24. Qb5 {[%clk 0:00:15]}  Bc6 {[%clk 0:01:01]} 25. Qb3 {[%clk 0:00:08]}  g5 {[%clk 0:01:01]} 26. fxg5 {[%clk 0:00:07]}  hxg5 {[%clk 0:01:01]} 27. Nc3 {[%clk 0:00:07]}  g4 {[%clk 0:00:58]} 28. Ne1 {[%clk 0:00:07]}  Bxc3 {[%clk 0:00:46]} 29. Qxc3 {[%clk 0:00:07]}  Nd4 {[%clk 0:00:46]} 30. Rb2 {[%clk 0:00:07]}  f4 {[%clk 0:00:47]} 31. Bxc6 {[%clk 0:00:04]}  Qxc6 {[%clk 0:00:45]} 32. gxf4 {[%clk 0:00:05]}  Rxf4 {[%clk 0:00:44]} 33. Ng2 {[%clk 0:00:05]}  Rf2 {[%clk 0:00:43]} 34. Nxe3 {[%clk 0:00:05]}  Nxe2+ {[%clk 0:00:43]} 35. Rxe2 {[%clk 0:00:04]}  Rxe2 {[%clk 0:00:44]} 36. Nd5 {[%clk 0:00:04]}  Qe6 {[%clk 0:00:43]} 37. Kf1 {[%clk 0:00:04]}  Rxh2 {[%clk 0:00:42]} 38. Nf4 {[%clk 0:00:02]}  Qf5 {[%clk 0:00:42]} 39. Qc1 {[%clk 0:00:02]}  Rh1+ {[%clk 0:00:42]} 0-1


[Site "https://www.chess.com"]

[Event "Titled Tuesday Blitz January 10 Early 2023"]
[White "Eljanov, Pavel"]
[Black "Gareyev, Timur"]
[WhiteFideId "14102951"]
[BlackFideId "14200937"]
[WhiteElo "2705"]
[BlackElo "2617"]
[Result "0-1"]
[Round "04"]
[TimeControl "180+2"]
[Date "2023.01.10"]
[WhiteClock "0:00:29"]
[BlackClock "0:00:48"]

1. d4 {[%clk 0:03:00]}  d6 {[%clk 0:02:59]} 2. Nf3 {[%clk 0:03:00]}  Bf5 {[%clk 0:02:58]} 3. c4 {[%clk 0:02:59]}  Nf6 {[%clk 0:02:54]} 4. Nc3 {[%clk 0:02:59]}  g6 {[%clk 0:02:51]} 5. h3 {[%clk 0:02:57]}  Bg7 {[%clk 0:02:44]} 6. g4 {[%clk 0:02:56]}  Bd7 {[%clk 0:02:44]} 7. e4 {[%clk 0:02:56]}  e5 {[%clk 0:02:39]} 8. d5 {[%clk 0:02:55]}  a5 {[%clk 0:02:38]} 9. Be3 {[%clk 0:02:48]}  Na6 {[%clk 0:02:38]} 10. Nd2 {[%clk 0:02:45]}  Nc5 {[%clk 0:02:36]} 11. Be2 {[%clk 0:02:44]}  a4 {[%clk 0:02:25]} 12. a3 {[%clk 0:02:21]}  h5 {[%clk 0:02:25]} 13. g5 {[%clk 0:02:17]}  Nh7 {[%clk 0:02:24]} 14. h4 {[%clk 0:02:18]}  O-O {[%clk 0:02:24]} 15. Qc2 {[%clk 0:02:14]}  b6 {[%clk 0:02:15]} 16. O-O-O {[%clk 0:02:10]}  f5 {[%clk 0:02:01]} 17. exf5 {[%clk 0:01:44]}  Bxf5 {[%clk 0:01:52]} 18. Nce4 {[%clk 0:01:36]}  Rf7 {[%clk 0:01:36]} 19. Bxc5 {[%clk 0:01:29]}  bxc5 {[%clk 0:01:35]} 20. Bd3 {[%clk 0:01:24]}  Nf8 {[%clk 0:01:30]} 21. Nf1 {[%clk 0:01:05]}  Bg4 {[%clk 0:01:25]} 22. Re1 {[%clk 0:01:04]}  Rf4 {[%clk 0:01:24]} 23. Ne3 {[%clk 0:00:55]}  Bf3 {[%clk 0:01:22]} 24. Rh3 {[%clk 0:00:54]}  Qd7 {[%clk 0:01:18]} 25. Rg3 {[%clk 0:00:54]}  Qf7 {[%clk 0:01:11]} 26. Nf6+ {[%clk 0:00:43]}  Bxf6 {[%clk 0:01:04]} 27. gxf6 {[%clk 0:00:43]}  e4 {[%clk 0:01:04]} 28. Be2 {[%clk 0:00:44]}  Qxf6 {[%clk 0:01:03]} 29. Bxf3 {[%clk 0:00:39]}  exf3 {[%clk 0:01:00]} 30. Kb1 {[%clk 0:00:36]}  Rb8 {[%clk 0:00:56]} 31. Ka2 {[%clk 0:00:37]}  Kh7 {[%clk 0:00:51]} 32. Reg1 {[%clk 0:00:34]}  Rxh4 {[%clk 0:00:49]} 33. Qxa4 {[%clk 0:00:29]}  Qxb2# {[%clk 0:00:48]} 0-1


[Site "https://www.chess.com"]

[Event "Titled Tuesday Blitz January 10 Early 2023"]
[White "Harshavardhan G B"]
[Black "Vokhidov, Shamsiddin"]
[WhiteFideId "25059009"]
[BlackFideId "14204223"]
[WhiteElo "2408"]
[BlackElo "2586"]
[Result "1-0"]
[Round "04"]
[TimeControl "180+2"]
[Date "2023.01.10"]
[WhiteClock "0:00:36"]
[BlackClock "0:00:19"]

1. d4 {[%clk 0:03:00]}  Nf6 {[%clk 0:03:00]} 2. c4 {[%clk 0:03:00]}  e6 {[%clk 0:03:00]} 3. Nc3 {[%clk 0:02:58]}  Bb4 {[%clk 0:03:00]} 4. f3 {[%clk 0:02:59]}  d5 {[%clk 0:02:56]} 5. a3 {[%clk 0:02:57]}  Bxc3+ {[%clk 0:02:56]} 6. bxc3 {[%clk 0:02:56]}  c6 {[%clk 0:02:57]} 7. e3 {[%clk 0:02:52]}  O-O {[%clk 0:02:56]} 8. cxd5 {[%clk 0:02:50]}  cxd5 {[%clk 0:02:57]} 9. Bd3 {[%clk 0:02:47]}  b6 {[%clk 0:02:57]} 10. Ne2 {[%clk 0:02:46]}  Ba6 {[%clk 0:02:57]} 11. O-O {[%clk 0:02:46]}  Bxd3 {[%clk 0:02:56]} 12. Qxd3 {[%clk 0:02:44]}  Nc6 {[%clk 0:02:24]} 13. e4 {[%clk 0:02:39]}  h6 {[%clk 0:02:20]} 14. Ng3 {[%clk 0:02:16]}  e5 {[%clk 0:02:17]} 15. Nf5 {[%clk 0:02:02]}  Qd7 {[%clk 0:02:17]} 16. exd5 {[%clk 0:01:54]}  Nxd5 {[%clk 0:02:08]} 17. dxe5 {[%clk 0:01:48]}  Nxe5 {[%clk 0:02:07]} 18. Qxd5 {[%clk 0:01:47]}  Qxf5 {[%clk 0:02:00]} 19. f4 {[%clk 0:01:47]}  Rad8 {[%clk 0:01:46]} 20. Qxe5 {[%clk 0:01:45]}  Qc2 {[%clk 0:01:41]} 21. f5 {[%clk 0:01:16]}  Rfe8 {[%clk 0:01:41]} 22. Qg3 {[%clk 0:01:16]}  Rd3 {[%clk 0:01:41]} 23. Qg4 {[%clk 0:01:14]}  h5 {[%clk 0:01:12]} 24. Qxh5 {[%clk 0:01:05]}  Re2 {[%clk 0:00:56]} 25. Qg4 {[%clk 0:01:03]}  Kh7 {[%clk 0:00:38]} 26. f6 {[%clk 0:00:56]}  g6 {[%clk 0:00:32]} 27. Bf4 {[%clk 0:00:43]}  Re6 {[%clk 0:00:22]} 28. Rae1 {[%clk 0:00:37]}  Rxe1 {[%clk 0:00:19]} 29. Rxe1 {[%clk 0:00:36]}  Qxc3 {[%clk 0:00:20]} 30. Qh4+ {[%clk 0:00:36]}  Kg8 {[%clk 0:00:19]} 31. Re8# {[%clk 0:00:36]} 1-0


[Site "https://www.chess.com"]

[Event "Titled Tuesday Blitz January 10 Early 2023"]
[White "Lenderman, Aleksandr"]
[Black "Gledura, Benjamin"]
[WhiteFideId "2021285"]
[BlackFideId "712779"]
[WhiteElo "2572"]
[BlackElo "2644"]
[Result "1-0"]
[Round "04"]
[TimeControl "180+2"]
[Date "2023.01.10"]
[WhiteClock "0:01:26"]
[BlackClock "0:01:25"]

1. Nf3 {[%clk 0:03:00]}  d5 {[%clk 0:02:59]} 2. e3 {[%clk 0:03:00]}  Bg4 {[%clk 0:02:58]} 3. c4 {[%clk 0:03:00]}  Bxf3 {[%clk 0:02:55]} 4. Qxf3 {[%clk 0:02:58]}  c6 {[%clk 0:02:55]} 5. Nc3 {[%clk 0:02:59]}  e6 {[%clk 0:02:55]} 6. d4 {[%clk 0:02:59]}  Nf6 {[%clk 0:02:55]} 7. g3 {[%clk 0:02:59]}  Bb4 {[%clk 0:02:54]} 8. Bd2 {[%clk 0:02:57]}  Nbd7 {[%clk 0:02:52]} 9. Qe2 {[%clk 0:02:56]}  Bxc3 {[%clk 0:02:50]} 10. Bxc3 {[%clk 0:02:56]}  Ne4 {[%clk 0:02:50]} 11. Rc1 {[%clk 0:02:55]}  Nxc3 {[%clk 0:02:48]} 12. Rxc3 {[%clk 0:02:56]}  O-O {[%clk 0:02:45]} 13. Bg2 {[%clk 0:02:56]}  Qa5 {[%clk 0:02:42]} 14. a3 {[%clk 0:02:50]}  Nb6 {[%clk 0:02:40]} 15. b4 {[%clk 0:02:50]}  Qa4 {[%clk 0:02:35]} 16. c5 {[%clk 0:02:44]}  Nc4 {[%clk 0:02:35]} 17. O-O {[%clk 0:02:44]}  a5 {[%clk 0:02:31]} 18. bxa5 {[%clk 0:02:08]}  Rxa5 {[%clk 0:02:32]} 19. Rb1 {[%clk 0:02:02]}  Nxa3 {[%clk 0:02:28]} 20. Rxb7 {[%clk 0:02:02]}  Nb5 {[%clk 0:02:14]} 21. Rc1 {[%clk 0:02:01]}  Qb3 {[%clk 0:02:08]} 22. Bf1 {[%clk 0:01:58]}  Ra2 {[%clk 0:02:07]} 23. Qd1 {[%clk 0:01:58]}  Qb2 {[%clk 0:02:06]} 24. Qe1 {[%clk 0:01:56]}  Rfa8 {[%clk 0:02:02]} 25. Bxb5 {[%clk 0:01:55]}  cxb5 {[%clk 0:01:53]} 26. c6 {[%clk 0:01:54]}  h5 {[%clk 0:01:45]} 27. c7 {[%clk 0:01:54]}  Kh7 {[%clk 0:01:44]} 28. Kg2 {[%clk 0:01:28]}  Rc8 {[%clk 0:01:42]} 29. Rb8 {[%clk 0:01:28]}  Rxc7 {[%clk 0:01:34]} 30. Rxc7 {[%clk 0:01:27]}  Ra1 {[%clk 0:01:25]} 31. Qc3 {[%clk 0:01:26]} 1-0


[Site "https://www.chess.com"]

[Event "Titled Tuesday Blitz January 10 Early 2023"]
[White "Goltsev, Dmitry"]
[Black "Jones, Gawain C B"]
[WhiteFideId "24176710"]
[BlackFideId "409561"]
[WhiteElo "2269"]
[BlackElo "2618"]
[Result "1-0"]
[Round "04"]
[TimeControl "180+2"]
[Date "2023.01.10"]
[WhiteClock "0:01:13"]
[BlackClock "0:00:01"]

1. e4 {[%clk 0:03:00]}  e5 {[%clk 0:02:58]} 2. Nf3 {[%clk 0:03:00]}  Nc6 {[%clk 0:02:58]} 3. Bb5 {[%clk 0:03:00]}  a6 {[%clk 0:02:58]} 4. Ba4 {[%clk 0:03:01]}  Nf6 {[%clk 0:02:58]} 5. O-O {[%clk 0:03:02]}  d6 {[%clk 0:02:58]} 6. c3 {[%clk 0:03:02]}  Bd7 {[%clk 0:02:58]} 7. d4 {[%clk 0:03:01]}  g6 {[%clk 0:02:58]} 8. dxe5 {[%clk 0:02:59]}  Nxe5 {[%clk 0:02:56]} 9. Nxe5 {[%clk 0:02:59]}  dxe5 {[%clk 0:02:56]} 10. Bg5 {[%clk 0:02:56]}  Be7 {[%clk 0:02:46]} 11. Bxf6 {[%clk 0:02:55]}  Bxf6 {[%clk 0:02:46]} 12. Bxd7+ {[%clk 0:02:56]}  Qxd7 {[%clk 0:02:46]} 13. Qxd7+ {[%clk 0:02:57]}  Kxd7 {[%clk 0:02:46]} 14. Nd2 {[%clk 0:02:57]}  a5 {[%clk 0:02:43]} 15. Nc4 {[%clk 0:02:57]}  a4 {[%clk 0:02:37]} 16. Rfd1+ {[%clk 0:02:56]}  Ke6 {[%clk 0:02:37]} 17. Rd5 {[%clk 0:02:55]}  Rhd8 {[%clk 0:02:32]} 18. Rad1 {[%clk 0:02:53]}  Rxd5 {[%clk 0:02:25]} 19. exd5+ {[%clk 0:02:54]}  Kd7 {[%clk 0:02:22]} 20. d6 {[%clk 0:02:54]}  Ra6 {[%clk 0:02:12]} 21. dxc7+ {[%clk 0:02:51]}  Kxc7 {[%clk 0:02:13]} 22. Ne3 {[%clk 0:02:45]}  Rd6 {[%clk 0:02:10]} 23. Rxd6 {[%clk 0:02:43]}  Kxd6 {[%clk 0:02:10]} 24. Kf1 {[%clk 0:02:44]}  e4 {[%clk 0:02:08]} 25. Ke2 {[%clk 0:02:43]}  a3 {[%clk 0:02:05]} 26. Nc4+ {[%clk 0:02:42]}  Kd5 {[%clk 0:02:00]} 27. Nxa3 {[%clk 0:02:42]}  Bg5 {[%clk 0:02:01]} 28. Nc2 {[%clk 0:02:39]}  f5 {[%clk 0:01:59]} 29. Ne3+ {[%clk 0:02:33]}  Kc5 {[%clk 0:01:59]} 30. a4 {[%clk 0:02:33]}  Bf6 {[%clk 0:01:56]} 31. b4+ {[%clk 0:02:32]}  Kd6 {[%clk 0:01:51]} 32. c4 {[%clk 0:02:31]}  Bc3 {[%clk 0:01:40]} 33. Nd5 {[%clk 0:02:30]}  Be5 {[%clk 0:01:37]} 34. a5 {[%clk 0:02:26]}  Bd4 {[%clk 0:01:12]} 35. f3 {[%clk 0:02:20]}  exf3+ {[%clk 0:01:08]} 36. gxf3 {[%clk 0:02:20]}  g5 {[%clk 0:01:04]} 37. h3 {[%clk 0:02:19]}  h5 {[%clk 0:00:58]} 38. Kd3 {[%clk 0:02:19]}  Bf2 {[%clk 0:00:57]} 39. Ne3 {[%clk 0:02:16]}  Be1 {[%clk 0:00:19]} 40. Nxf5+ {[%clk 0:02:04]}  Ke5 {[%clk 0:00:14]} 41. Nd4 {[%clk 0:02:04]}  Kf4 {[%clk 0:00:04]} 42. Nc2 {[%clk 0:02:04]}  Bf2 {[%clk 0:00:03]} 43. Ke2 {[%clk 0:01:55]}  Bg1 {[%clk 0:00:03]} 44. c5 {[%clk 0:01:54]}  Bh2 {[%clk 0:00:02]} 45. Nd4 {[%clk 0:01:44]}  Ke5 {[%clk 0:00:01]} 46. Kd3 {[%clk 0:01:26]}  Kd5 {[%clk 0:00:02]} 47. Ne2 {[%clk 0:01:19]}  Be5 {[%clk 0:00:02]} 48. Nc3+ {[%clk 0:01:19]}  Ke6 {[%clk 0:00:02]} 49. Ne4 {[%clk 0:01:18]}  Bf4 {[%clk 0:00:02]} 50. b5 {[%clk 0:01:17]}  Kd5 {[%clk 0:00:02]} 51. c6 {[%clk 0:01:12]}  bxc6 {[%clk 0:00:02]} 52. a6 {[%clk 0:01:12]}  Bb8 {[%clk 0:00:01]} 53. b6 {[%clk 0:01:13]} 1-0


[Site "https://www.chess.com"]

[Event "Titled Tuesday Blitz January 10 Early 2023"]
[White "Moroni, Luca Jr"]
[Black "Boyer, Mahel"]
[WhiteFideId "865834"]
[BlackFideId "45102422"]
[WhiteElo "2535"]
[BlackElo "2489"]
[Result "1-0"]
[Round "04"]
[TimeControl "180+2"]
[Date "2023.01.10"]
[WhiteClock "0:00:50"]
[BlackClock "0:00:01"]

1. d4 {[%clk 0:03:00]}  d5 {[%clk 0:02:59]} 2. Bf4 {[%clk 0:03:00]}  e6 {[%clk 0:02:54]} 3. e3 {[%clk 0:02:59]}  Bd6 {[%clk 0:02:54]} 4. Nf3 {[%clk 0:02:58]}  Bxf4 {[%clk 0:02:54]} 5. exf4 {[%clk 0:02:59]}  Ne7 {[%clk 0:02:54]} 6. Nbd2 {[%clk 0:02:57]}  c5 {[%clk 0:02:55]} 7. dxc5 {[%clk 0:02:52]}  Qc7 {[%clk 0:02:55]} 8. g3 {[%clk 0:02:52]}  Qxc5 {[%clk 0:02:48]} 9. c3 {[%clk 0:02:52]}  Qb6 {[%clk 0:02:46]} 10. Nb3 {[%clk 0:02:49]}  Nbc6 {[%clk 0:02:41]} 11. Bd3 {[%clk 0:02:48]}  a5 {[%clk 0:02:35]} 12. Qd2 {[%clk 0:02:40]}  O-O {[%clk 0:02:33]} 13. O-O {[%clk 0:02:36]}  a4 {[%clk 0:02:19]} 14. Nbd4 {[%clk 0:02:35]}  Nxd4 {[%clk 0:02:19]} 15. Nxd4 {[%clk 0:02:36]}  Nc6 {[%clk 0:02:19]} 16. Nf3 {[%clk 0:02:35]}  a3 {[%clk 0:01:54]} 17. b3 {[%clk 0:02:26]}  Rd8 {[%clk 0:01:44]} 18. Rad1 {[%clk 0:02:16]}  Bd7 {[%clk 0:01:37]} 19. Rfe1 {[%clk 0:02:15]}  h6 {[%clk 0:01:33]} 20. Bb1 {[%clk 0:02:15]}  Ne7 {[%clk 0:01:28]} 21. Ne5 {[%clk 0:02:07]}  Rac8 {[%clk 0:01:25]} 22. Qd3 {[%clk 0:02:03]}  g6 {[%clk 0:01:23]} 23. h4 {[%clk 0:01:48]}  Bb5 {[%clk 0:01:20]} 24. Qf3 {[%clk 0:01:40]}  h5 {[%clk 0:01:18]} 25. g4 {[%clk 0:01:35]}  hxg4 {[%clk 0:01:03]} 26. Qxg4 {[%clk 0:01:36]}  Kg7 {[%clk 0:00:08]} 27. h5 {[%clk 0:01:32]}  Be8 {[%clk 0:00:01]} 28. Qh4 {[%clk 0:00:50]}  Nf5 {[%clk 0:00:01]} 29. Bxf5 {[%clk 0:00:50]} 1-0


[Site "https://www.chess.com"]

[Event "Titled Tuesday Blitz January 10 Early 2023"]
[White "Nakamura, Hikaru"]
[Black "Shipov, Sergei"]
[WhiteFideId "2016192"]
[BlackFideId "4113624"]
[WhiteElo "2775"]
[BlackElo "2541"]
[Result "1-0"]
[Round "04"]
[TimeControl "180+2"]
[Date "2023.01.10"]
[WhiteClock "0:01:10"]
[BlackClock "0:00:11"]

1. Nf3 {[%clk 0:03:00]}  d5 {[%clk 0:02:59]} 2. e3 {[%clk 0:02:59]}  Nf6 {[%clk 0:02:55]} 3. b3 {[%clk 0:02:51]}  Bg4 {[%clk 0:02:50]} 4. Bb2 {[%clk 0:02:51]}  Nbd7 {[%clk 0:02:49]} 5. d4 {[%clk 0:02:51]}  e6 {[%clk 0:02:43]} 6. Nbd2 {[%clk 0:02:51]}  c6 {[%clk 0:02:37]} 7. c4 {[%clk 0:02:51]}  Ne4 {[%clk 0:02:26]} 8. a3 {[%clk 0:02:48]}  f5 {[%clk 0:02:23]} 9. Be2 {[%clk 0:02:40]}  Bd6 {[%clk 0:02:22]} 10. b4 {[%clk 0:02:24]}  O-O {[%clk 0:02:21]} 11. Qb3 {[%clk 0:02:24]}  Nxd2 {[%clk 0:02:12]} 12. Nxd2 {[%clk 0:02:21]}  Bxe2 {[%clk 0:02:12]} 13. Kxe2 {[%clk 0:02:22]}  Qg5 {[%clk 0:02:06]} 14. g3 {[%clk 0:02:21]}  Qh5+ {[%clk 0:02:02]} 15. f3 {[%clk 0:02:17]}  Rae8 {[%clk 0:01:56]} 16. Raf1 {[%clk 0:02:07]}  Kh8 {[%clk 0:01:55]} 17. Kd1 {[%clk 0:02:07]}  b5 {[%clk 0:01:50]} 18. c5 {[%clk 0:02:05]}  Bc7 {[%clk 0:01:49]} 19. a4 {[%clk 0:02:05]}  a6 {[%clk 0:01:46]} 20. axb5 {[%clk 0:02:01]}  axb5 {[%clk 0:01:46]} 21. Kc2 {[%clk 0:02:01]}  e5 {[%clk 0:01:47]} 22. f4 {[%clk 0:02:00]}  e4 {[%clk 0:01:10]} 23. Kb1 {[%clk 0:01:48]}  Qe2 {[%clk 0:01:05]} 24. Bc1 {[%clk 0:01:45]}  Ra8 {[%clk 0:01:03]} 25. Re1 {[%clk 0:01:46]}  Qf2 {[%clk 0:01:03]} 26. Ref1 {[%clk 0:01:45]}  Qe2 {[%clk 0:01:03]} 27. Re1 {[%clk 0:01:46]}  Qf2 {[%clk 0:01:02]} 28. Qd1 {[%clk 0:01:30]}  Ra4 {[%clk 0:00:56]} 29. Re2 {[%clk 0:01:26]}  Rxb4+ {[%clk 0:00:30]} 30. Bb2 {[%clk 0:01:26]}  Qxe2 {[%clk 0:00:25]} 31. Qxe2 {[%clk 0:01:27]}  Nf6 {[%clk 0:00:21]} 32. Kc2 {[%clk 0:01:22]}  Ra8 {[%clk 0:00:21]} 33. Ra1 {[%clk 0:01:22]}  Rxa1 {[%clk 0:00:20]} 34. Bxa1 {[%clk 0:01:22]}  Ra4 {[%clk 0:00:21]} 35. Bb2 {[%clk 0:01:22]}  h5 {[%clk 0:00:21]} 36. h3 {[%clk 0:01:22]}  Kh7 {[%clk 0:00:17]} 37. Kb1 {[%clk 0:01:18]}  Bd8 {[%clk 0:00:17]} 38. Nb3 {[%clk 0:01:16]}  Bc7 {[%clk 0:00:17]} 39. Bc3 {[%clk 0:01:16]}  Bd8 {[%clk 0:00:17]} 40. Kb2 {[%clk 0:01:16]}  Bc7 {[%clk 0:00:17]} 41. Qe1 {[%clk 0:01:13]}  Kh6 {[%clk 0:00:16]} 42. Ba5 {[%clk 0:01:12]}  Bb8 {[%clk 0:00:15]} 43. Bd8 {[%clk 0:01:10]}  Nd7 {[%clk 0:00:12]} 44. g4 {[%clk 0:01:10]}  fxg4 {[%clk 0:00:11]} 45. hxg4 {[%clk 0:01:10]} 1-0


[Site "https://www.chess.com"]

[Event "Titled Tuesday Blitz January 10 Early 2023"]
[White "Ozen, Bahadir"]
[Black "Lymar, Vladislav"]
[WhiteFideId "6337058"]
[BlackFideId "14162180"]
[WhiteElo "2369"]
[BlackElo "2119"]
[Result "0-1"]
[Round "04"]
[TimeControl "180+2"]
[Date "2023.01.10"]
[WhiteClock "0:01:17"]
[BlackClock "0:01:29"]

1. g3 {[%clk 0:03:00]}  d5 {[%clk 0:02:58]} 2. Nf3 {[%clk 0:03:01]}  c5 {[%clk 0:02:59]} 3. Bg2 {[%clk 0:03:01]}  Nc6 {[%clk 0:02:59]} 4. d4 {[%clk 0:03:01]}  Nf6 {[%clk 0:03:00]} 5. O-O {[%clk 0:03:01]}  e6 {[%clk 0:03:00]} 6. c4 {[%clk 0:03:01]}  Be7 {[%clk 0:03:01]} 7. cxd5 {[%clk 0:03:00]}  exd5 {[%clk 0:03:01]} 8. dxc5 {[%clk 0:02:49]}  Bxc5 {[%clk 0:02:57]} 9. a3 {[%clk 0:02:49]}  Ne4 {[%clk 0:02:55]} 10. b4 {[%clk 0:02:46]}  Be7 {[%clk 0:02:54]} 11. Bb2 {[%clk 0:02:46]}  Bf6 {[%clk 0:02:54]} 12. Ra2 {[%clk 0:02:19]}  O-O {[%clk 0:02:50]} 13. Nfd2 {[%clk 0:02:14]}  Be6 {[%clk 0:02:42]} 14. Nxe4 {[%clk 0:02:09]}  dxe4 {[%clk 0:02:41]} 15. Bxf6 {[%clk 0:02:06]}  Qxd1 {[%clk 0:02:41]} 16. Rxd1 {[%clk 0:02:06]}  Bxa2 {[%clk 0:02:41]} 17. Bh4 {[%clk 0:01:59]}  h6 {[%clk 0:02:34]} 18. Nc3 {[%clk 0:01:59]}  Bb3 {[%clk 0:02:30]} 19. Rb1 {[%clk 0:01:58]}  Be6 {[%clk 0:02:20]} 20. g4 {[%clk 0:01:57]}  Bxg4 {[%clk 0:02:16]} 21. Bxe4 {[%clk 0:01:57]}  Nd4 {[%clk 0:02:09]} 22. f3 {[%clk 0:01:57]}  Be6 {[%clk 0:01:45]} 23. Bxb7 {[%clk 0:01:45]}  Rab8 {[%clk 0:01:43]} 24. Ba6 {[%clk 0:01:44]}  Rb6 {[%clk 0:01:38]} 25. Bd3 {[%clk 0:01:44]}  Rc6 {[%clk 0:01:39]} 26. Ne4 {[%clk 0:01:35]}  Bc4 {[%clk 0:01:35]} 27. Bxc4 {[%clk 0:01:23]}  Rxc4 {[%clk 0:01:36]} 28. Bf2 {[%clk 0:01:19]}  Nxe2+ {[%clk 0:01:31]} 29. Kf1 {[%clk 0:01:19]}  Nc3 {[%clk 0:01:29]} 30. Rc1 {[%clk 0:01:17]}  Nxe4 {[%clk 0:01:29]} 0-1


[Site "https://www.chess.com"]